Workbook

Sheet Приложение
E1: Приложение
E2: к стандартам раскрытия информации субъектами оптового и розничных рынков электрической энергии
E3: (в ред. Постановления Правительства РФ от 30.01.2019 № 64)
A5: ПРОГНОЗНЫЕ СВЕДЕНИЯ
A6: о расходах за технологическое присоединение
A7: Акционерное общество "Мурманэнергосбыт" на 2024 год
A8: (наименование сетевой организации)
A10: 1. | B10: Полное наименование | E10: Акционерное общество "Мурманэнергосбыт"
A11: 2. | B11: Сокращённое наименование | E11: АО "МЭС"
A12: 3. | B12: Место нахождения | E12: 183034,г.Мурманск, ул.Свердлова, д.39, корп.1
A13: 4. | B13: Адрес юридического лица | E13: 183034,г.Мурманск, ул.Свердлова, д.39, корп.1
A14: 5. | B14: ИНН | E14: 519 090 71 39
A15: 6. | B15: КПП | E15: 785150001
A16: 7. | B16: Ф.И.О. руководителя | E16: Истомина Алла Павловна
A17: 8. | B17: Адрес электронной почты | E17: info@mures.ru
A18: 9. | B18: Контактный телефон | E18: 8(8152)68-63-26/43-90-13
A19: 10. | B19: Факс | E19: 8(8152)68-63-26/43-90-13

Sheet приложение 1.1
H2: к Методическим указаниям по определению размера платы за технологическое присоединение
H3: (ред к Приказу ФАС России от 30.06.2022 № 490/22)
H4: Приложение № 1
B6: Расходы на строительство введенных в эксплуатацию объектов электросетевого хозяйства для целей технологического присоединения и для целей реализации иных мероприятий инвестиционной программы территориальной сетевой организации за 2020-2022 годы
B7: Наименование территориальной сетевой организации: | D7: Акционерное общество "Мурманэнергосбыт"
B9: № | C9: Объект электросетевого хозяйства | D9: Год ввода объекта | E9: Марка провода (кабеля) / тип подстанции, пункта секционирования, прибора учета | F9: Уровень напряжения, кВ | G9: Протяженность (для линий электропередачи), метров/Количество пунктов секционирования, штук/Количество точек учета, штук | H9: Пропускная способность, кВт / Максимальная мощность, кВт | I9: Расходы на строительство объекта, руб. | J9: Дополнительные сведения | K9: Территория (город/ не город)
C10: Строительство воздушных линий | I10: =I11+I1797+I3553+I5908 -> 10426302.69
C11: Номинальное напряжение 0,4 кВ и ниже | I11: =I12+I616+I1206 -> 5340463.27
C12: Тип опоры - деревянный | I12: =I13+I318 -> 5340463.27
C13: Тип провода - изолированный | I13: =I14+I86+I176+I253 -> 5340463.27
C14: Материал провода - медный
C15: Cечение провода до 50 кв. мм включительно
C16: Одноцепные
C17: <пообъектная расшифровка>
C21: Двухцепные
C25: Cечение провода от 50 до 100 кв. мм включительно
C26: Одноцепные
C27: <пообъектная расшифровка>
C31: Двухцепные
C35: <пообъектная расшифровка>
C44: Cечение провода от 100 до 200 кв. мм включительно
C45: Одноцепные
C46: <пообъектная расшифровка>
C50: Двухцепные
C54: Cечение провода от 200 до 500 кв. мм включительно
C55: Одноцепные
C56: <пообъектная расшифровка>
C60: Двухцепные
C64: Cечение провода от 500 до 800 кв. мм включительно
C65: Одноцепные
C66: <пообъектная расшифровка>
C70: Двухцепные
C75: Cечение провода свыше 800 кв. мм
C76: Одноцепные
C77: <пообъектная расшифровка>
C81: Двухцепные
C86: Материал провода - сталеалюминиевый | I86: =I87+I125+I135+I145+I155+I165 -> 5340463.27
C87: Cечение провода до 50 кв. мм включительно | I87: =I88+I109 -> 3729136.78
C88: Одноцепные | I88: =SUM(I89:I108) -> 3729136.78
C89: Воздушная линия ВЛ 0.4 кВ №3 ТП-64 | D89: 2020 | E89: СИП-4 4х16 | F89: 0.4 | G89: 20 | I89: 32131.99 | J89: №ТП-792/2020 от 05.02.2020 ФЛ Коширова Наталья Викторовна | K89: город
C90: Воздушная линия ВЛ 0,4 кВ Л12/5а | D90: 2020 | E90: СИП-2А 3х50+1х54.6 | F90: 0.4 | G90: 157.5 | H90: 10 | I90: 200522.42 | J90: №ТП-025/2019 от 08.07.2019 ФЛ Гуляев В.А. | K90: город
C91: Воздушная линия изолированная ВЛИ 0.4 кВ Л 12/6 | D91: 2020 | E91: СИП-2 3х50+1х50 | F91: 0.4 | G91: 230 | H91: 5 | I91: 476001.19 | J91: №ТП-040/2019 от 12.09.2019 ФЛ Балыков А.Н. | K91: город
C92: Воздушная линия изолированная ВЛИ 0.4 кВ ОЛИ 12/5в | D92: 2020 | E92: СИП-2 3х50+1х50 | F92: 0.4 | G92: 260 | H92: 5 | I92: 603191.25 | J92: №ТП-042/2019 от 30.09.2019 ФЛ Уракова Н.И. | K92: город
C93: Воздушная линия изолированная ВЛИ 0.4 кВ ОЛИ 37/7-8б | D93: 2020 | E93: СИП-2А 3х50+1х54,6 | F93: 0.4 | G93: 24 | H93: 2 | I93: 55124.91 | J93: №ТП-001/2020 от 10.01.2020 ФЛ Ляхевич А.Г. | K93: город
C94: Воздушная линия изолированная ВЛИ 0.4 кВ ОЛИ Л12/5б | D94: 2020 | E94: СИП-2А 3х50+1х54.6 | F94: 0.4 | G94: 83 | H94: 20 | I94: 129955.43 | J94: №ТП-028/2019 от 07.08.2019 ФЛ Пивкин В.Г. | K94: город
C95: Воздушная линия изолированная ВЛИ 0.4 кВ ОЛ 519/8 | D95: 2020 | E95: СИП-2А 3х35+1х50 | F95: 0.4 | G95: 95 | H95: 20 | I95: 71646.27 | J95: №ТП-004/2020 от 12.03.2020 ФЛ Зейкан И.И | K95: город
C96: Воздушная линия изолированная ВЛИ 0,4 кВ №3 КТПН-8 | D96: 2021 | E96: СИП-4 4х35; СИП-4 4х25; СИП-4 4х16 | F96: 0.4 | G96: 575 | H96: 3 | I96: 613289.7 | J96: №ТП-828/2020 от 21.10.2020 ФЛ Тихомирова Н.П. | K96: город
C97: Воздушная линия изолированная ВЛИ 0,4 кВ №9 РП-2 | D97: 2021 | E97: СИП-4 4х16 | F97: 0.4 | G97: 45 | H97: 10 | I97: 25600 | J97: №ТП-844/2021 от 09.03.2021 ФЛ Хисмятуллова Е.А. | K97: город
C98: Воздушная линия изолированная ВЛИ 0,4 кВ Л-12/5 от оп.20 до ВРУ дачного дома | D98: 2021 | E98: СИП-2А 3х35+1х54,6 | F98: 0.4 | G98: 30 | H98: 5 | I98: 50575.88 | J98: №ТП-026/2020 от 17.08.2020 ФЛ Галимова Т.Г. | K98: город
C99: Воздушная линия изолированная ВЛИ 0,4 кВ №8 КТП-109 н.п.Енский | D99: 2021 | E99: СИП-4 4х16 | F99: 0.4 | G99: 30 | I99: 38515.39 | J99: №ТП-798/2020 от 18.03.2020 ФЛ Анохина Е.М | K99: не город
C100: Воздушная линия 0,4 кВ ОЛИ-12/5а (оп.№7В ВЛИ-0,4кВ ОЛИ-12/5а-7) | D100: 2022 | E100: СИП-2 3х50+1х54,6 | F100: 0.4 | G100: 260 | H100: 5 | I100: 341042.8 | J100: №ТП-022/2020 от 28.07.2020 ФЛ Харина Н.В | K100: город
C101: Воздушная линия 0,4 кВ ОЛИ-12/5а-7 (оп. №14 ВЛИ-0,4кВ ОЛИ-12/5а) | D101: 2022 | E101: СИП-2 3х25+1х35 | F101: 0.4 | G101: 85 | H101: 3 | I101: 167368.78 | J101: №ТП-032/2020 от 10.09.2020 ФЛ Веселова В.Т. | K101: город
C102: Воздушная линия 0,4 кВ ОЛИ-12/6-25 (оп.№25в ВЛИ-0,4кВ ОЛИ-12/6-25) | D102: 2022 | E102: СИП-2 3х50+1х50 | F102: 0.4 | G102: 92 | H102: 5 | I102: 193273.38 | J102: №ТП-025/2020 от 17.08.2020 ФЛ Мыколышин Р.П. | K102: город
C103: Воздушная линия 0,4 кВ ОЛИ-12/6-25 (оп.№25в ВЛИ-0,4кВ ОЛИ-12/6-25) | D103: 2022 | E103: СИП-2 3х25+1х35 | F103: 0.4 | G103: 58 | I103: 123568.23
C104: Воздушная линия 0,4 кВ ОЛИ-21/3-7(3) (оп.№3Е ВЛИ-0,4кВ ОЛИ-21/3-7 (3)) | D104: 2022 | E104: СИП-2 3х25+1х35 | F104: 0.4 | G104: 160 | H104: 2 | I104: 265608.91 | J104: №ТП-027/2020 от 17.08.2020 ФЛ Нефтяков Д.С. | K104: город
C105: Воздушная линия 0,4 кВ ОЛИ-12/5г (оп.№17В ВЛИ-0,4кВ ОЛИ-12/5г) | D105: 2022 | E105: СИП-2 3х25+1х35 | F105: 0.4 | G105: 77 | H105: 10 | I105: 140186.81 | J105: №ТП- 038/2020 от 20.10.2020 ФЛ Косяченко Е.В. | K105: город
C106: Воздушная линия 0,4 кВ ОЛИ-12/5д (оп.№21Б ВЛИ-0,4кВ ОЛИ-12/5д) | D106: 2022 | E106: СИП-2 3х25+1х35 | F106: 0.4 | G106: 55 | H106: 5 | I106: 109453.28 | J106: №ТП-039/2020 от 20.10.2020 ФЛ Мальцева А.А. | K106: город
C107: Воздушная линия 0.4 кВ ОЛИ-12/5г (оп.№17а-1 ВЛИ-0,4кВ ОЛИ-12/5г) | D107: 2022 | E107: СИП 3х25+1х35 | F107: 0.4 | G107: 40 | H107: 10 | I107: 32233.92 | J107: №ТП-045/2021 от 24.06.2021 ФЛ Турикова Т. М. | K107: город
C108: Воздушная линия 0,4 кВ ВЛИ Л-13/7-6 (оп.№2а ВЛИ-0,4кВ Л-13/7-6) | D108: 2022 | E108: СИП-2 3х35+1х50 | F108: 0.4 | G108: 27 | H108: 2 | I108: 59846.24 | J108: №ТП-040/2021 от 17.06.2021 ФЛ Подчеварова Л.М. | K108: город
C109: Двухцепные
C125: Cечение провода от 50 до 100 кв. мм включительно | I125: =I126+I130 -> 1611326.49
C126: Одноцепные | I126: =SUM(I127:I129) -> 1611326.49
C127: Воздушная линия ВЛ 0.4 кВ №3 ТП-64 | D127: 2020 | E127: СИП-2 3х95+1х95 | F127: 0.4 | G127: 440 | H127: 15 | I127: 706903.83 | J127: №ТП-792/2020 от 05.02.2020 ФЛ Коширова Наталья Викторовна | K127: город
C128: Воздушная линия изолированная ВЛИ 0,4 кВ №8 КТП-109 н.п.Енский | D128: 2021 | E128: СИП-2 3х95+1х95 | F128: 0.4 | G128: 530 | H128: 15 | I128: 680438.59 | J128: №ТП-798/2020 от 18.03.2020 ФЛ Анохина Е.М | K128: не город
C129: Воздушная линия изолированная ВЛИ 0,4 кВ №3 КТПН-8 | D129: 2021 | E129: СИП-2 3х70 | F129: 0.4 | G129: 210 | I129: 223984.07 | J129: №ТП-828/2020 от 21.10.2020 ФЛ Тихомирова Н.П. | K129: город
C130: Двухцепные
C135: Cечение провода от 100 до 200 кв. мм включительно
C136: Одноцепные
C137: <пообъектная расшифровка>
C141: Двухцепные
C145: Cечение провода от 200 до 500 кв. мм включительно
C146: Одноцепные
C147: <пообъектная расшифровка>
C151: Двухцепные
C155: Cечение провода от 500 до 800 кв. мм включительно
C156: Одноцепные
C157: <пообъектная расшифровка>
C161: Двухцепные
C165: Cечение провода свыше 800 кв. мм
C166: Одноцепные
C167: <пообъектная расшифровка>
C171: Двухцепные
C176: Материал провода - стальной
C177: Cечение провода до 50 кв. мм включительно
C178: Одноцепные
C179: <пообъектная расшифровка>
C183: Двухцепные
C199: Cечение провода от 50 до 100 кв. мм включительно
C200: Одноцепные
C201: <пообъектная расшифровка>
C205: Двухцепные
C210: Cечение провода от 100 до 200 кв. мм включительно
C211: Одноцепные
C212: <пообъектная расшифровка>
C216: Двухцепные
C220: Cечение провода от 200 до 500 кв. мм включительно
C221: Одноцепные
C222: <пообъектная расшифровка>
C226: Двухцепные
C231: Cечение провода от 500 до 800 кв. мм включительно
C232: Одноцепные
C233: <пообъектная расшифровка>
C237: Двухцепные
C242: Cечение провода свыше 800 кв. мм
C243: Одноцепные
C244: <пообъектная расшифровка>
C248: Двухцепные
C253: Материал провода - алюминиевый
C254: Cечение провода до 50 кв. мм включительно
C255: Одноцепные
C256: <пообъектная расшифровка>
C260: Двухцепные
C263: Cечение провода от 50 до 100 кв. мм включительно
C264: Одноцепные
C265: <пообъектная расшифровка>
C269: Двухцепные
C274: Cечение провода от 100 до 200 кв. мм включительно
C275: Одноцепные
C276: <пообъектная расшифровка>
C280: Двухцепные
C285: Cечение провода от 200 до 500 кв. мм включительно
C286: Одноцепные
C287: <пообъектная расшифровка>
C291: Двухцепные
C296: Cечение провода от 500 до 800 кв. мм включительно
C297: Одноцепные
C298: <пообъектная расшифровка>
C302: Двухцепные
C307: Cечение провода свыше 800 кв. мм
C308: Одноцепные
C309: <пообъектная расшифровка>
C313: Двухцепные
C318: Тип провода - неизолированный
C319: Материал провода - медный
C320: Cечение провода до 50 кв. мм включительно
C321: Одноцепные
C322: <пообъектная расшифровка>
C326: Двухцепные
C330: Cечение провода от 50 до 100 кв. мм включительно
C331: Одноцепные
C332: <пообъектная расшифровка>
C336: Двухцепные
C341: Cечение провода от 100 до 200 кв. мм включительно
C342: Одноцепные
C343: <пообъектная расшифровка>
C347: Двухцепные
C352: Cечение провода от 200 до 500 кв. мм включительно
C353: Одноцепные
C354: <пообъектная расшифровка>
C358: Двухцепные
C363: Cечение провода от 500 до 800 кв. мм включительно
C364: Одноцепные
C365: <пообъектная расшифровка>
C369: Двухцепные
C374: Cечение провода свыше 800 кв. мм
C375: Одноцепные
C376: <пообъектная расшифровка>
C380: Двухцепные
C385: Материал провода - сталеалюминиевый
C386: Cечение провода до 50 кв. мм включительно
C387: Одноцепные
C388: <пообъектная расшифровка>
C392: Двухцепные
C408: Cечение провода от 50 до 100 кв. мм включительно
C409: Одноцепные
C410: <пообъектная расшифровка>
C414: Двухцепные
C419: Cечение провода от 100 до 200 кв. мм включительно
C420: Одноцепные
C421: <пообъектная расшифровка>
C425: Двухцепные
C429: Cечение провода от 200 до 500 кв. мм включительно
C430: Одноцепные
C431: <пообъектная расшифровка>
C435: Двухцепные
C440: Cечение провода от 500 до 800 кв. мм включительно
C441: Одноцепные
C442: <пообъектная расшифровка>
C446: Двухцепные
C451: Cечение провода свыше 800 кв. мм
C452: Одноцепные
C453: <пообъектная расшифровка>
C457: Двухцепные
C462: Материал провода - стальной
C463: Cечение провода до 50 кв. мм включительно
C464: Одноцепные
C465: <пообъектная расшифровка>
C469: Двухцепные
C485: Cечение провода от 50 до 100 кв. мм включительно
C486: Одноцепные
C487: <пообъектная расшифровка>
C491: Двухцепные
C496: Cечение провода от 100 до 200 кв. мм включительно
C497: Одноцепные
C498: <пообъектная расшифровка>
C502: Двухцепные
C506: Cечение провода от 200 до 500 кв. мм включительно
C507: Одноцепные
C508: <пообъектная расшифровка>
C512: Двухцепные
... 16842 more rows

Sheet приложение 2
E1: Приложение № 2
E2: к Методическим указаниям по определению размера платы за технологическое присоединение
E3: (ред к Приказу ФАС России от 30.06.2022 № 490/22)
B4: Расходы на выполнение мероприятий по технологическому присоединению, не связанных со строительством объектов электросетевого хозяйства
B6: Наименование территориальной сетевой организации: | D6: Акционерное общество "Мурманэнергосбыт"
B8: № п/п | C8: Наименование мероприятий | D8: Информация для расчета стандартизированной тарифной ставки С1 | G8: Расходы на одно присоединение (руб. на одно ТП)
D9: Расходы по каждому мероприятию (руб.) | E9: Количество технологических присоединений (шт.) | F9: Объем максимальной мощности (кВт)
B10: 1 | C10: Данные за 2022 год
B11: 1.1 | C11: Подготовка и выдача сетевой организацией технических условий заявителю | D11: 303706 | E11: 109 | F11: 692 | G11: 2786.293578
B12: 1.2 | C12: Проверка сетевой организацией выполнения заявителем технических условий: | D12: - | E12: - | F12: - | G12: -
B13: 1.2.1 | C13: Расходы на выдачу уведомления об обеспечении сетевой организацией возможности присоединения к электрическим сетям заявителям, указанным в абзаце 6 пункта 24 МУ 490/22 | D13: 923592 | E13: 108 | F13: 612 | G13: 8551.777778
B14: 1.2.2 | C14: Проверка сетевой организацией выполнения технических условий заявителями, указанными в абзаце 7 пункта 24 МУ 490/22 | D14: 3171 | E14: 1 | F14: 80 | G14: 3171
B15: 2 | C15: Данные за 2021 год
B16: 2.1 | C16: Подготовка и выдача сетевой организацией технических условий заявителю | D16: 207250 | E16: 87 | F16: 1203.6 | G16: 2382.183908
B17: 2.2 | C17: Проверка сетевой организацией выполнения заявителем технических условий | D17: - | E17: - | F17: - | G17: -
B18: 2.2.1 | C18: Расходы на выдачу уведомления об обеспечении сетевой организацией возможности присоединения к электрическим сетям заявителям, указанным в абзаце 6 пункта 24 МУ 490/22 | D18: 628952 | E18: 86 | F18: 1013.6 | G18: 7313.395349
B19: 2.2.2 | C19: Проверка сетевой организацией выполнения технических условий заявителями, указанными в абзаце 7 пункта 24 МУ 490/22 | D19: 3476 | E19: 1 | F19: 190 | G19: 3476
B20: 3 | C20: Данные за 2020 год
B21: 3.1 | C21: Подготовка и выдача сетевой организацией технических условий заявителю | D21: 157006 | E21: 114 | F21: 1967 | G21: 1377.245614
B22: 3.2 | C22: Проверка сетевой организацией выполнения заявителем технических условий | D22: - | E22: - | F22: - | G22: -
B23: 3.2.1 | C23: Расходы на выдачу уведомления об обеспечении сетевой организацией возможности присоединения к электрическим сетям заявителям, указанным в абзаце 6 пункта 24 МУ 490/22 | D23: 455873 | E23: 109 | F23: 1215 | G23: 4182.321101
B24: 3.2.2 | C24: Проверка сетевой организацией выполнения технических условий заявителями, указанными в абзаце 7 пункта 24 МУ 490/22 | D24: 23234 | E24: 5 | F24: 752 | G24: 4646.8
B27: 8(81535) 7-37-35 Оноприенко И.Н.
B30: Примечание:
B31: 1. Сведения предоставляются за три последних года, по которым имеются отчетные данные.
B32: 2. Расходы на выполнение мероприятий по технологическому присоединению, не связанных со строительством объектов электросетевого хозяйства, определяются в соответствии с данными раздельного учета сетевой организации.
B33: 3. Проверка сетевой организацией выполнения заявителем технических условий выполняется в соответствии с разделом IX Правил технологического присоединения.
B34: 4. Договор между сетевой организацией и заявителями, указанными в пунктах 12(1), 13(2) - 13(5) и 14 Правил технологического присоединения, заключается также в соответствии с разделом X Правил технологического присоединения.

Sheet Пилож.№ 2
C1: Приложение № 2
C2: к стандартам раскрытия информации субъектами оптового и розничных рынков электрической энергии
C3: (в ред. Постановления Правительства РФ от 30.01.2019 № 64)
A5: ИНФОРМАЦИЯ
A6: о фактических средних данных о присоединенных объемах максимальной мощности за 3 предыдущих года по каждому мероприятию
A7: № п/п | B7: Наименование мероприятий | C7: Фактические расходы на строительство подстанций за 3 предыдущих года ( тыс. руб) (без НДС) | D7: Объём мощности, введённой в основные фонды за 3 предыдущих года (кВт)
A9: 1. | B9: Строительство пунктов секционирования (распределительных пунктов) | C9: - | D9: -
A10: 2. | B10: Строительство комплектных трансформаторных подстанций и распределительных трансформаторных подстанций с уровнем напряжения до 35 кВ | C10: ='приложение 1.1'!I24890/1000 -> 3406.49423 | D10: ='приложение 1.1'!H24905+'приложение 1.1'!H25710 -> 1278.4
A11: 3. | B11: Строительство центров питания и подстанций уровнем напряжения 35 кВ и выше | C11: - | D11: -
A13: Исполнитель
A14: И.Н. Оноприенко

Sheet Прилож. № 3
D1: Приложение № 3
D2: к стандартам раскрытия информации субъектами оптового и розничных рынков электрической энергии
D3: (в ред. Постановления Правительства РФ от 30.01.2019 № 64)
A5: ИНФОРМАЦИЯ
A6: о фактических средних данных о длине линий электропередачи и об объемах максиальной мощности построенных объектов за 3 предыдущих года по каждому мероприятию
A7: № п/п | B7: Наименование мероприятий | C7: Расходы на строительство воздушных и кабельных линий электропередачи на уровне напряжения, фактически построенных за 3 последние 3 года (тыс. руб) (без НДС) | D7: Длина воздушных и кабельных линий электропередачи на уровне напряжения, фактически построенных за 3 года (км) | E7: Объём максимальной мощности, присоединённой путём строительства воздушных линий или кабельных линий за 3 последние года (кВт)
A9: 1. | B9: Строительство кабельных линий электропередачи | C9: =C10+C11+C12 -> 11846.11702 | D9: 4.25 | E9: =E10+E11+E12 -> 820.5
B10: 0,4 кВ | C10: ='приложение 1.1'!I8274/1000 -> 7227.13347 | D10: =('приложение 1.1'!G8280+'приложение 1.1'!G8281+'приложение 1.1'!G8282+'приложение 1.1'!G8283+'приложение 1.1'!G8294+'приложение 1.1'!G8306+'приложение 1.1'!G8307+'приложение 1.1'!G8308+'приложение 1.1'!G8309+'приложение 1.1'!G8310+'приложение 1.1'!G8311+'приложение 1.1'!G8326+'приложение 1.1'!G8327+'приложение 1.1'!G8328+'приложение 1.1'!G8329)/1000 -> 2.885 | E10: ='приложение 1.1'!H8280+'приложение 1.1'!H8282+'приложение 1.1'!H8283+'приложение 1.1'!H8307+'приложение 1.1'!H8309+'приложение 1.1'!H8311+'приложение 1.1'!H8326 -> 480.5
B11: 1 - 20 кВ | C11: ='приложение 1.1'!I11410/1000 -> 4618.98355 | D11: =(60+'приложение 1.1'!G11776+100+1100)/1000 -> 1.365 | E11: ='приложение 1.1'!H11776 -> 340
B12: 35 кВ | C12: 0 | D12: 0 | E12: 0
A13: 2. | B13: Строительство воздушных линий электропередачи: | C13: =C14+C15+C16 -> 10426.30269 | D13: =D14+D15+D16 -> 9.1935 | E13: =E14+E15+E16 -> 217
B14: 0,4 кВ | C14: ='приложение 1.1'!I11/1000 -> 5340.46327 | D14: =('приложение 1.1'!G89+'приложение 1.1'!G90+'приложение 1.1'!G91+'приложение 1.1'!G92+'приложение 1.1'!G93+'приложение 1.1'!G94+'приложение 1.1'!G95+'приложение 1.1'!G96+'приложение 1.1'!G97+'приложение 1.1'!G98+'приложение 1.1'!G99+'приложение 1.1'!G100+'приложение 1.1'!G101+'приложение 1.1'!G102+'приложение 1.1'!G103+'приложение 1.1'!G104+'приложение 1.1'!G105+'приложение 1.1'!G106+'приложение 1.1'!G107+'приложение 1.1'!G108+'приложение 1.1'!G127+'приложение 1.1'!G128+'приложение 1.1'!G129)/1000 -> 3.5835 | E14: ='приложение 1.1'!H90+'приложение 1.1'!H91+'приложение 1.1'!H92+'приложение 1.1'!H93+'приложение 1.1'!H94+'приложение 1.1'!H95+'приложение 1.1'!H96+'приложение 1.1'!H97+'приложение 1.1'!H98+'приложение 1.1'!H100+'приложение 1.1'!H101+'приложение 1.1'!H102+'приложение 1.1'!H104+'приложение 1.1'!H105+'приложение 1.1'!H106+'приложение 1.1'!H107+'приложение 1.1'!H108+'приложение 1.1'!H127+'приложение 1.1'!H128 -> 152
B15: 1 - 20 кВ | C15: ='приложение 1.1'!I1797/1000 -> 5085.83942 | D15: =('приложение 1.1'!G1890)/1000 -> 5.61 | E15: ='приложение 1.1'!H1890 -> 65
B16: 35 кВ | C16: 0 | D16: 0 | E16: 0
A18: Исполнитель
A19: И.Н. Оноприенко

Sheet Прилож. № 4
G1: Приложение № 4
G2: к стандартам раскрытия информации субъектами оптового и розничных рынков электрической энергии
G3: (в ред. Постановления Правительства РФ от 30.01.2019 № 64)
A5: ИНФОРМАЦИЯ
A6: об осуществлении технологического присоединения по договорам, заключенным за текущий год (9 месяцев 2023г)
B7: информация актуальна на 01.10.2023
A8: № п/п | B8: Категория заявителей (с 01.01.2023 по 30.09.2023) | C8: Количество договоров (штук) | F8: Максимальная мощность (кВт) | I8: Стоимость договоров (без НДС) (тыс. руб)
C9: 0,4 кВ | D9: 1 - 20 кВ | E9: 35 кВ и выше | F9: 0,4 кВ | G9: 1 - 20 кВ | H9: 35 кВ и выше | I9: 0,4 кВ | J9: 1 - 20 кВ | K9: 35 кВ и выше
A10: 1. | B10: До 15 кВт - всего | C10: =10+27 -> 37 | D10: - | E10: - | F10: =47+112 -> 159 | G10: - | H10: - | I10: =184.7+376.9 -> 561.6 | J10: - | K10: -
B11: в том числе льготная категория (*) | C11: =7+25 -> 32 | D11: - | E11: - | F11: =32+106 -> 138 | G11: - | H11: - | I11: =99.2+313 -> 412.2 | J11: - | K11: -
A12: 2. | B12: От 15 до 150 кВт - всего | C12: =2+7 -> 9 | D12: - | E12: - | F12: =46+394.2 -> 440.2 | G12: - | H12: - | I12: =67.2+273.5 -> 340.7 | J12: - | K12: -
B13: в том числе льготная категория (**) | C13: - | D13: - | E13: - | F13: - | G13: - | H13: - | I13: - | J13: - | K13: -
A14: 3. | B14: От 150 до 670 кВт - всего | C14: - | D14: - | E14: - | F14: - | G14: - | H14: - | I14: - | J14: - | K14: -
B15: в том числе по индивидуальному проекту | C15: - | D15: - | E15: - | F15: - | G15: - | H15: - | I15: - | J15: - | K15: -
A16: 4. | B16: От 670кВт до 8900 кВт - всего | C16: - | D16: - | E16: - | F16: - | G16: - | H16: - | I16: - | J16: - | K16: -
B17: в том числе по индивидуальному проекту | C17: - | D17: - | E17: - | F17: - | G17: - | H17: - | I17: - | J17: - | K17: -
A18: 5. | B18: От 8900 кВт - всего | C18: - | D18: - | E18: - | F18: - | G18: - | H18: - | I18: - | J18: - | K18: -
B19: в том числе по индивидуальному проекту | C19: - | D19: - | E19: - | F19: - | G19: - | H19: - | I19: - | J19: - | K19: -
A20: 6. | B20: Объекты генерации | C20: - | D20: - | E20: - | F20: - | G20: - | H20: - | I20: - | J20: - | K20: -
A22: (*) | B22: Заявители - физ.лица и прочие заявители, оплачивающие технологическое присоединение своих энергопринимающих устройств по льготной ставке за 1 кВт запрашиваемой максимальной мощности
A23: (**) | B23: Заявители - юридические лица или индивидуальные предприниматели, заключившие договор об осуществлении технологического присоединения по третьей категории надежности (по одному источнику электроснабжения) на уровне напряжения 0,4 кВ и ниже, энергопринимающих устройств максимальной мощностью до 150 кВт включительно (с учётом ранее присоединённой мощности), при условии, что расстояние от этих энергопринимающих устройств до ближайщего объекта электрических сетей необходимого заявителю класса напряжения составляет не более 200 метров в городах и поселках городского типа и не более 300 метров в сельской местности
A24: Исполнитель
A25: И.Н. Оноприенко

Sheet Прилож. № 5
C1: Приложение № 5
C2: к стандартам раскрытия информации субъектами оптового и розничных рынков электрической энергии
C3: (в ред. Постановления Правительства РФ от 30.01.2019 № 64)
A5: ИНФОРМАЦИЯ
A6: о поданных заявках на технологическое присоединение за текущий год (9 месяцев 2023г)
B7: информация актуальна на 01.10.2023
A8: № п/п | B8: Категория заявителей (с 01.01.2023 по 30.09.2023) | C8: Количество заявок (штук) | F8: Максимальная мощность (кВт)
C9: 0,4 кВ | D9: 1 - 20 кВ | E9: 35 кВ и выше | F9: 0,4 кВ | G9: 1 - 20 кВ | H9: 35 кВ и выше
A10: 1. | B10: До 15 кВт - всего | C10: =19+37 -> 56 | D10: - | E10: - | F10: =88+194 -> 282 | G10: - | H10: -
B11: в том числе льготная категория (*) | C11: =13+32 -> 45 | D11: - | E11: - | F11: =60+143 -> 203 | G11: - | H11: -
A12: 2. | B12: От 15 до 150 кВт - всего | C12: =3+12 -> 15 | D12: - | E12: - | F12: =146+674.4 -> 820.4 | G12: - | H12: -
B13: в том числе льготная категория (**) | C13: - | D13: - | E13: - | F13: - | G13: - | H13: -
A14: 3. | B14: От 150 до 670 кВт - всего | C14: =1 -> 1 | D14: 2 | E14: - | F14: =0+600 -> 600 | G14: 781 | H14: -
B15: в том числе по индивидуальному проекту | C15: - | D15: - | E15: - | F15: - | G15: - | H15: -
A16: 4. | B16: От 670кВт - всего | C16: - | D16: - | E16: - | F16: - | G16: - | H16: -
B17: в том числе по индивидуальному проекту | C17: - | D17: - | E17: - | F17: - | G17: - | H17: -
A19: (*) | B19: Заявители - физ.лица и прочие заявители, оплачивающие технологическое присоединение своих энергопринимающих устройств по льготной ставке за 1 кВт запрашиваемой максимальной мощности
A20: (**) | B20: Заявители - юридические лица или индивидуальные предприниматели, заключившие договор об осуществлении технологического присоединения по третьей категории надежности (по одному источнику электроснабжения) на уровне напряжения 0,4 кВ и ниже, энергопринимающих устройств максимальной мощностью до 150 кВт включительно (с учётом ранее присоединённой мощности), при условии, что расстояние от этих энергопринимающих устройств до ближайщего объекта электрических сетей необходимого заявителю класса напряжения составляет не более 200 метров в городах и поселках городского типа и не более 300 метров в сельской местности
A21: Исполнитель
A22: И.Н. Оноприенко
